Cogmind - Beta 13 @@@ ROGUE MODE // 2024.07.04 @ 18:20:43 Player: celerysam Result: Destroyed by S-27 Virus with Autogun Performance ------------- Evolutions (3) 1500 Regions Visited (5) 1000 Robots Destroyed (37) 185 Value Destroyed (1369) 1369 Prototype IDs (13) 260 Alien Tech Used (0) 0 Bonus (173) 173 TOTAL SCORE: 4487 Bonus ------- Follower Combat Kills 173 Cogmind --------- Core Integrity 0/700 Matter 190/300 Energy 108/220 System Corruption 1% Temperature Cool (0) Movement Core (200) Ox3 Location -7/Factory Parts ------- > --- POWER (2) -------- Light Nuclear Core Light Nuclear Core > --- PROPULSION (6) --- (None) > --- UTILITY (3) ------ Transmission Jammer System Shield > --- WEAPON (2) ------- (None) > --- INVENTORY (5) ---- ECM Suite Improved Propulsion Shielding Improved Datajack Heavy Mace Peak State ------------ > --- POWER ------------ Improved Deuterium Engine > --- PROPULSION ------- Gravmag System Gravmag System Improved Flight Unit Surge Thruster Surge Thruster Improved VTOL Module > --- UTILITY ---------- Weight Redist. System Hacking Suite System Shield > --- WEAPON ----------- Precision Shock Rifle Advanced Assault Cannon > --- INVENTORY -------- Aerolev Unit Flak Gun Proton Missile Launcher Improved Datajack Heavy Mace [Rating: 43] Favorites ----------- Power Light Ion Engine Engine Light Ion Engine Power Core Light Nuclear Core Propulsion Surge Thruster Treads Improved Treads Leg Aluminum Leg Wheel Armored Wheel Hover Unit Airjet Flight Unit Surge Thruster Utility System Shield Device Weight Redist. System Storage Small Storage Unit Processor Transport Network Coupler Hackware System Shield Weapon Assault Rifle Energy Gun Improved EM Shotgun Ballistic Gun Assault Rifle Ballistic Cannon Advanced Assault Cannon Launcher Proton Missile Launcher Build | -11 -10 -9 -8 -8 -7 ------- Run | Yrd Mat Mat Mat Sto Fac Slots Evolved 6 | . . 2 2 . 2 Power 1 | . . . 1 . . Propulsion 4 | . . 2 . . 2 Utility 1 | . . . 1 . . Weapon . | . . . . . . Parts Attached 92 | 6 4 14 24 22 22 Power 15 | 1 . 3 4 2 5 Engine 8 | 1 . 3 2 1 1 Core 7 | . . . 2 1 4 Reactor . | . . . . . . Propulsion 42 | 2 2 7 14 9 8 Treads 6 | . . 2 3 . 1 Leg 8 | . . . 6 . 2 Wheel 6 | 2 . 4 . . . Hover 13 | . 2 1 3 3 4 Flight 9 | . . . 2 6 1 Utility 8 | 1 1 . 2 1 3 Device 4 | . . . . 1 3 Storage 1 | 1 . . . . . Processor 1 | . 1 . . . . Hackware 2 | . . . 2 . . Protection . | . . . . . . Artifact . | . . . . . . Weapon 27 | 2 1 4 4 10 6 Energy Gun 10 | . . . 2 6 2 Energy Cannon . | . . . . . . Ballistic Gun 11 | 2 1 3 2 2 1 Ballistic Cannon 3 | . . 1 . . 2 Launcher 3 | . . . . 2 1 Special Weapon . | . . . . . . Impact Weapon . | . . . . . . Slashing Weapon . | . . . . . . Piercing Weapon . | . . . . . . Special Melee Weapon . | . . . . . . Unidentified Prototypes 13 | . . 1 . 9 3 Parts Lost 45 | . . 7 13 4 21 Power 10 | . . 2 3 1 4 Propulsion 22 | . . 4 6 2 10 Utility 5 | . . . 1 . 4 Weapon 8 | . . 1 3 1 3 Highest Loss Streak 12 | . . 6 5 3 12 To Critical Strikes . | . . . . . . Average Slot Usage (%) 87 | . 93 90 81 96 78 Engine 7 | . 14 8 1 12 5 Core 3 | . . . 7 3 2 Treads 4 | . . 2 6 8 . Leg 4 | . . . 14 . 1 Wheel 4 | . 5 33 . . . Hover 7 | . 21 3 7 3 5 Flight 12 | . . . 1 21 26 Device 1 | . . . . 2 5 Storage 4 | . 14 11 4 . . Processor 6 | . 9 11 9 7 . Hackware 11 | . . . 11 18 14 Energy Gun 4 | . . . 4 8 4 Ballistic Gun 11 | . 28 12 12 8 1 Ballistic Cannon 2 | . . 7 . . 6 Naked Turns . | . . . . . . Heaviest Build 22 | 11 12 14 17 16 22 Greatest Support 68 | 32 32 48 68 68 26 Greatest Overweight (x) 3 | . 3 2 3 1 3 Average Overweight (x) . | . . . . . . Largest Inventory Capacity 8 | 8 8 8 8 5 5 Average Capacity 6 | 7 8 8 6 5 5 Most Carried 8 | 8 8 8 8 5 5 Average Carried 5 | 5 6 7 5 4 4 Final Capacity 8 | 8 8 8 5 5 5 Final Carried 7 | 6 7 7 5 5 4 Class Distribution -------------------- 35% | Mutant 20% | Scavenger-Mutant 16% | Commander-Sprinter 14% | Hacker-Mutant 10% | Hacker-Sprinter 3% | Commander-Mutant Dominant Class ---------------- Mutant | -10/Materials Mutant | -9/Materials Scavenger-Mutant | -8/Materials Commander-Sprinter | -8/Storage Hacker-Sprinter | -7/Factory Resources | -11 -10 -9 -8 -8 -7 ----------- Run | Yrd Mat Mat Mat Sto Fac Matter Collected 1524 | 194 81 112 523 380 234 Remotely . | . . . . . . Salvage Created 1323 | . 116 98 617 187 305 Parts 60 | . 10 7 23 3 17 Haulers Intercepted . | . . . . . . Recyclers Shooed . | . . . . . . Parts Field Recycled . | . . . . . . Retrieved Matter . | . . . . . . Parts Self-Destructed . | . . . . . . Prevented . | . . . . . . Kills | -11 -10 -9 -8 -8 -7 ------- Run | Yrd Mat Mat Mat Sto Fac Combat Hostiles Destroyed 32 | . 3 2 16 4 7 Guns 28 | . 3 2 16 3 4 Cannons 2 | . . . . . 2 AOE 2 | . . . . 1 1 Classes Destroyed 8 | . 2 2 1 1 2 Worker 2 | . . . . . 2 Operator 2 | . 1 1 . . . Watcher 1 | . . 1 . . . Swarmer 7 | . . . 4 . 3 Grunt 17 | . 3 . 9 2 3 Sentry 6 | . . 2 3 1 . Hunter 1 | . . . . 1 . Programmer 1 | . . . . . 1 Best Kill Streak 7 | . 2 1 7 1 5 Combat Bots Only 7 | . 1 1 7 1 2 Max Kills in Single Turn 2 | . 1 1 1 1 2 Gunslinging . | . . . . . . Exploded 1 | . . . . 1 1 Melee . | . . . . . . Uniques/NPCs Destroyed . | . . . . . . Combat | -11 -10 -9 -8 -8 -7 -------- Run | Yrd Mat Mat Mat Sto Fac Hostile Shots Fired 639 | . 19 141 132 50 297 Missed 205 | . 7 40 38 8 112 Damage Taken 5565 | . 130 1305 1410 701 2019 Core 1509 | . 12 385 298 102 712 Absorbed by Shields 69 | . . . . 20 49 Core Remaining (%) 56 | 100 95 3 . 27 . Volleys Fired 138 | . 17 14 56 22 29 Largest 2 | . 2 2 2 2 2 Hottest 103 | . 40 64 94 88 103 Shots Fired 236 | . 34 27 84 40 51 Gun 192 | . 34 14 84 38 22 Cannon 40 | . . 13 . . 27 Launcher 4 | . . . . 2 2 Special . | . . . . . . Kinetic 184 | . 34 27 69 20 34 Thermal 24 | . . . 15 9 . Explosive 2 | . . . . 2 . Electromagnetic 26 | . . . . 9 17 Robot Hit Streak 14 | . 8 6 14 7 10 Robot Miss Streak 6 | . 1 2 6 2 5 Penetration Max . | . . . . . . Secondary Targets 5 | . 1 . 3 1 . Max Gunslinging Chain 1 | . 1 . 1 1 . Shots Hit Robots 159 | . 23 18 61 20 37 Core Hits 78 | . 8 6 35 7 22 Critical Kills . | . . . . . . Critical Parts Destroyed . | . . . . . . Critical Strikes 6 | . . 2 . 1 3 Burn 1 | . . . . 1 . Blast 5 | . . 2 . . 3 Melee Attacks . | . . . . . . Impact . | . . . . . . Slashing . | . . . . . . Piercing . | . . . . . . Sneak Attacks . | . . . . . . Combat Hostiles . | . . . . . . Follow-up Attacks . | . . . . . . Damage Inflicted 3184 | . 300 328 1125 389 1042 Guns 2167 | . 300 128 1121 288 330 Cannons 752 | . . 200 . . 552 Explosions 261 | . . . . 101 160 Melee . | . . . . . . Ramming 4 | . . . 4 . . Kinetic 2358 | . 300 328 966 97 667 Thermal 277 | . . . 155 122 . Explosive 44 | . . . . 44 . Electromagnetic 501 | . . . . 126 375 Impact . | . . . . . . Slashing . | . . . . . . Piercing . | . . . . . . Highest Corruption 1 | . . . . . 1 Average Corruption 1 | . . . . . 1 Corruption Purged . | . . . . . . Corruption Blocked . | . . . . . . Effects 2 | . . . . . 2 Energy Discharges 1 | . . . . . 1 Data Loss (minor) 1 | . . . . . 1 Overload Shots . | . . . . . . Overflow Damage 18 | . . 11 . . 7 Projectiles 18 | . . 11 . . 7 Explosions . | . . . . . . Melee . | . . . . . . Knockbacks 5 | . . . . . 5 Impact . | . . . . . . Kinetic 4 | . . . . . 4 Secondary 1 | . . . . . 1 Self-Inflicted Damage 58 | . . . . 52 6 Shots 2 | . . . . 1 1 Rammed . | . . . . . . Targets Rammed 1 | . . . 1 . . Kicked 1 | . . . 1 . . Crushed . | . . . . . . Highest Temperature 373 | . 10 43 157 193 373 Average Temperature 68 | . 2 13 55 45 99 Received Heat Transfer 1983 | . 72 576 792 86 457 Effects 3 | . . . . . 3 Interference 3 | . . . . . 3 Siege Activations . | . . . . . . Robots Corrupted . | . . . . . . Combat Hostiles . | . . . . . . Parts Fried . | . . . . . . Impact Corruptions . | . . . . . . Robots Melted . | . . . . . . Combat Hostiles . | . . . . . . Parts Melted 1 | . . . 1 . . Heat Transferred 605 | . . . 333 272 . Parts Sabotaged . | . . . . . . Parts Stolen . | . . . . . . Parts Stripped . | . . . . . . Power Chain Reactions 1 | . . . . 1 . Alert | -11 -10 -9 -8 -8 -7 ------- Run | Yrd Mat Mat Mat Sto Fac Peak Influence 415 | . 150 140 343 344 415 Initial 119 | . . 63 52 53 119 Average 169 | . 78 98 196 169 249 Maximum Alert Level 2 | . . . 1 1 2 Low Security (%) 63 | 100 100 100 55 59 30 Level 1 36 | . . . 44 40 67 Level 2 . | . . . . . 1 Level 3 . | . . . . . . Level 4 . | . . . . . . Level 5 . | . . . . . . High Security . | . . . . . . Max Security . | . . . . . . Squads Dispatched 8 | . 1 1 2 . 4 Investigation 1 | . . . . . 1 Extermination . | . . . . . . Reinforcement 7 | . 1 1 2 . 3 Assault . | . . . . . . Garrison . | . . . . . . Intercept . | . . . . . . Searches Triggered . | . . . . . . Construction Impeded 1 | . . . . . 1 Haulers Reinforced 1 | . . . . . 1 Active Scanning Responses . | . . . . . . Cargo Convoy Interrupts . | . . . . . . Stealth | -11 -10 -9 -8 -8 -7 --------- Run | Yrd Mat Mat Mat Sto Fac Distress Signals 8 | . 2 2 2 1 1 Communications Jammed . | . . . . . . Distress Signals . | . . . . . . Times Spotted 97 | . 9 22 22 16 28 Peak Tracking Total 16 | . 3 16 6 5 8 Tactical Retreats 14 | . 2 . 1 5 6 Traps | -11 -10 -9 -8 -8 -7 ------- Run | Yrd Mat Mat Mat Sto Fac Traps Triggered 4 | . . . . 2 2 Indirectly . | . . . . . . Trap Hack Attempts . | . . . . . . Triggered . | . . . . . . Disarmed . | . . . . . . Reprogrammed 4 | . . . . 4 . Reused . | . . . . . . Traps Extracted . | . . . . . . Installed . | . . . . . . Triggered . | . . . . . . Machines | -11 -10 -9 -8 -8 -7 ---------- Run | Yrd Mat Mat Mat Sto Fac Machines Disabled 5 | . . . 2 2 1 Max in Single Turn 1 | . . . 1 1 1 Machines Repaired . | . . . . . . Machines Dismantled . | . . . . . . Machines Sabotaged . | . . . . . . Overloaded Fab Kills . | . . . . . . Hacking | -11 -10 -9 -8 -8 -7 --------- Run | Yrd Mat Mat Mat Sto Fac Machines Accessed 7 | . 2 . 1 1 3 Terminals 6 | . 2 . 1 1 2 Fabricators 1 | . . . . . 1 Repair Stations . | . . . . . . Recycling Units . | . . . . . . Scanalyzers . | . . . . . . Garrison Access . | . . . . . . Total Hacks 10 | . 2 . 2 1 5 Successful 4 | . . . 1 1 2 Failed 6 | . 2 . 1 . 3 Catastrophic . | . . . . . . Database Lockouts . | . . . . . . Manual 1 | . . . . . 1 Terminals 8 | . 2 . 2 1 3 Fabricators 2 | . . . . . 2 Repair Stations . | . . . . . . Recycling Units . | . . . . . . Scanalyzers . | . . . . . . Garrison Access . | . . . . . . Terminal Hacks 3 | . . . 1 1 1 Unreport Threat 1 | . . . 1 . . Locate Traps 1 | . . . . . 1 Reprogram Traps 1 | . . . . 1 . Fabricator Hacks . | . . . . . . Repair Station Hacks . | . . . . . . Recycling Unit Hacks . | . . . . . . Scanalyzer . | . . . . . . Garrison Access Hacks . | . . . . . . Unauthorized Hacks 1 | . . . . . 1 Terminals . | . . . . . . Fabricators 1 | . . . . . 1 Download 1 | . . . . . 1 Repair Stations . | . . . . . . Recycling Units . | . . . . . . Scanalyzers . | . . . . . . Garrison Access . | . . . . . . Data Cores Recovered 1 | . . 1 . . . Used . | . . . . . . Hacking Detections 3 | . 1 . . 1 1 Full Trace Events . | . . . . . . Feedback Events . | . . . . . . Feedback Blocked . | . . . . . . Robot Schematics Acquired . | . . . . . . Robots Built . | . . . . . . Authchips . | . . . . . . Time . | . . . . . . Total Robot Build Rating . | . . . . . . Part Schematics Acquired . | . . . . . . Parts Built . | . . . . . . Authchips . | . . . . . . Time . | . . . . . . Total Part Build Rating . | . . . . . . Parts Repaired . | . . . . . . Time . | . . . . . . Parts Recycled . | . . . . . . Recycled Matter . | . . . . . . Retrieved Matter . | . . . . . . Retrieved Components . | . . . . . . Parts Scanalyzed . | . . . . . . Part Schematics Acquired . | . . . . . . Parts Damaged . | . . . . . . Bothacking | -11 -10 -9 -8 -8 -7 ------------ Run | Yrd Mat Mat Mat Sto Fac Used RIF Installer . | . . . . . . Robots Hacked . | . . . . . . Non-combat . | . . . . . . Combat . | . . . . . . Robot Hacks Applied . | . . . . . . Relay Couplers Released . | . . . . . . Fabnet Peak Effective % . | . . . . . . Robots Rewired . | . . . . . . Allies Hacked . | . . . . . . Hacks Repelled . | . . . . . . Allies | -11 -10 -9 -8 -8 -7 -------- Run | Yrd Mat Mat Mat Sto Fac Total Allies 10 | . . . . 10 . Largest Group 10 | . . . . 10 7 Highest-Rated Group 173 | . . . . 173 125 Highest-Rated Ally 29 | . . . . 29 29 Total Orders . | . . . . . . Ally Attacks 71 | . . . . 37 34 Total Damage 900 | . . . . 549 351 Kills 10 | . . . . 5 5 Allies Corrupted . | . . . . . . Allies Melted . | . . . . . . Intel | -11 -10 -9 -8 -8 -7 ------- Run | Yrd Mat Mat Mat Sto Fac Robot Analysis Total . | . . . . . . Derelict Logs Recovered . | . . . . . . Drone Launches . | . . . . . . Drone Recoveries . | . . . . . . Exploration | -11 -10 -9 -8 -8 -7 ------------- Run | Yrd Mat Mat Mat Sto Fac Turns Passed 2122 | 63 256 245 559 544 455 Spaces Moved 2421 | 49 284 187 324 765 812 Core 50 | 9 2 3 1 . 35 Treads 102 | . . . 71 31 . Legs 126 | . . . 126 . . Wheels 225 | 40 43 142 . . . Hover 478 | . 239 42 102 91 4 Flight 1440 | . . . 24 643 773 Fastest Speed 24 | 50 56 60 56 27 24 Average Speed 55 | 90 63 89 111 39 35 Slowest Speed 300 | 100 200 150 300 155 200 Overloaded Moves . | . . . . . . Propulsion Burnouts . | . . . . . . Robots Hopped 28 | . . . . 22 6 Cave-ins Triggered . | . . . . . . Exploration Rate (%) 33 | 3 47 26 26 73 24 Regions Visited 5 Branch Regions 1 Pre-discovered Areas 1 | . . . . 1 . Known Exits Taken . | . . . . . . Unknown Exits Taken 5 | 1 1 1 1 1 . Scrap Searched . | . . . . . . Spaces Dug 1 | . . . . . 1 Terrain Destroyed 24 | . . . . 20 4 Melee . | . . . . . . Projectile 4 | . . . . . 4 AOE 20 | . . . . 20 . Terrain Rammed . | . . . . . . Walls Destroyed . | . . . . . . Machines Disabled . | . . . . . . Actions | -11 -10 -9 -8 -8 -7 --------- Run | Yrd Mat Mat Mat Sto Fac Total 2919 | 66 326 238 436 938 915 Wait 166 | 2 16 . 10 109 29 Move 2366 | 48 283 186 323 726 800 Hop 22 | . . . . 16 6 Pick Up 57 | 10 4 13 17 6 7 Fast Attach 37 | 2 . . 8 10 17 Attach 32 | 4 3 4 14 2 5 Detach . | . . . . . . Swap 24 | . 1 10 2 10 1 Drop 41 | . 2 11 5 12 11 Fire 138 | . 17 14 56 22 29 Melee . | . . . . . . Ram . | . . . . . . Kick 1 | . . . 1 . . Crush . | . . . . . . Escape Stasis 35 | . . . . 25 10 Rewire . | . . . . . . Trap . | . . . . . . Miscellaneous . | . . . . . . Route ------- -11/Scrapyard -10/Materials (discovered 2 exits: [*Mat] / [*Min]) -9/Materials -8/Materials -8/Storage -7/Factory History --------- Turn | Location | Event 11 | -11/Scrapyard | Discovered new exit (range 16) 64 | -11/Scrapyard | Entered Materials 149 | -10/Materials | Discovered new exit (range 8) 308 | -10/Materials | Build established: Mutant 312 | -10/Materials | Discovered new exit (range 9) 320 | -10/Materials | Entered another Materials area 320 | -9/Materials | Evolved 2 slots: Propulsion x2 521 | -9/Materials | Core integrity fell below 50% 554 | -9/Materials | Discovered new exit (range 15) 557 | -9/Materials | Core integrity fell below 20% 565 | -9/Materials | Entered another Materials area 565 | -8/Materials | Evolved 2 slots: Power x1, Utility x1 581 | -8/Materials | Lost 6 parts (1p4n1w) 703 | -8/Materials | Lost 5 parts (1p3n1w) 918 | -8/Materials | Lost 4 parts (2n1u1w) 943 | -8/Materials | Destroyed 7 combat bots 1017 | -8/Materials | Discovered new exit (range 10) 1019 | -8/Materials | Core integrity fell below 50% 1038 | -8/Materials | Build established: Scavenger-Mutant 1124 | -8/Materials | Entered Storage 1245 | -8/Storage | Lost 3 parts (2n1w) 1308 | -8/Storage | Assisted by bots powering up and referring to "LRC-V3" 1389 | -8/Storage | Lost 3 allies 1445 | -8/Storage | Discovered new exit (range 15) 1493 | -8/Storage | Learned location of Armory (-3) 1620 | -8/Storage | Build established: Commander-Sprinter 1668 | -8/Storage | Entered Factory 1668 | -7/Factory | Accompanied by 7 allies 1668 | -7/Factory | Evolved 2 slots: Propulsion x2 1813 | -7/Factory | Lost 6 allies 2043 | -7/Factory | Lost 4 parts (1p2n1u) 2077 | -7/Factory | Core integrity fell below 50% 2094 | -7/Factory | Core integrity fell below 20% 2123 | -7/Factory | Destroyed by S-27 Virus with Autogun Last Messages --------------- 02079_ Acquired 6 matter. 02081_ Hacking Suite destroyed. 02086_ Emergency Access malfunctions. 02089_ Aerolev Unit destroyed. 02090_ Slug penetrates Wall. 02093_ Acquired Imp. Propulsion Shielding. 02093_ Slug penetrates Wall. 02097_ S-27 Virus misfires. 02097_ G-47 Trooper destroyed. 02097_ Lgt. Nuclear Core destroyed. 02098_ S-27 Virus destroyed. 02102_ Slug penetrates Wall. 02107_ K-01 Serf collects debris. 02108_ Wall collapses. 02108_ Proton Missile Launcher destroyed. 02108_ R-06 Scavenger collects Corrupted Wheel. 02111_ W-25 Informer sends out distress signal. 02117_ Acquired Transmission Jammer. 02118_ Imp. Kinecellerator destroyed. 02119_ Acquired Lgt. Nuclear Core. Map ----- +----------------------------------------------------+ | ?????????????????????# # #?? | | ?????????????????????# # """ ! "" #?? | | ?????????????????????# # """ "F"" #?? | | ???????????????# ### + """ """" +?? | | ???????????????+ [ + # #?? | | ???????????????# ### # #?? | | ?????????????????????# ! #####+####+##### | | ?????????????????????#% %= #???# | | ?????????????#### #### *% #???# | | ?????? / %[ #???# """ """ | | ?????????????###########"/#########???# """ ""? | | ?????????????# =%%!#??????????# """ """ | | ?????????"???# = #??????????# | | ?????????" ??# ! #??????????# """ """ | | ?????????? ?# #??????????# """ """ | | ???????????= # #??????????# """ ""? | | ???????????? + #??????????# ??? | | ?????????????# #??????????# "?? | | ?????????????# #??????????# ""? | | ?????????????#! #??????????###########? | | ?????????????# #?????????????????????? | | ?????????????# #?????????????????????? | | ?????????????#######;##########??????????????????? | | ?????????????????# w^ *] +??????????????????? | | ?????????????????# s ]] #??????????????????? | | ?????????????????# """ @]] #??????????????????? | | ?????????????????# """ +??????????????????? | | ?????????????????# """ #??????????????????? | | ?????????????????# #??????????????????? | | ?????????????????# """ """ #??????????????????? | | ?????????????????# """ """ ?????????????????? | | ?????????????????# """ """ ????????????????? | | ?????????????????# ??????????????? | | ?????????????????# ?????????????? | | ?????????????????##"" ""# ?????????????? | | ????????????????????"G""????####k ????????????? | | ?????????????????????###???????? ????????????? | | ????????????????????????????????? ??????????????? | | ?????????????????????????????????????????????????? | | ?????????????????????????????????????????????????? | | ?????????????????????????????????????????????????? | | ?????????????????????????????????????????????????? | | ?????????????????????????????????????????????????? | | ?????????????????????????????????????????????????? | | ?????????????????????????????????????????????????? | | ?????????????????????????????????????????????????? | | ?????????????????????????????????????????????????? | | ?????????????????????????????????????????????????? | | ?????????????????????????????????????????????????? | | ?????????????????????????????????????????????????? | +----------------------------------------------------+ Best States ------------- Heat Dissipation 34 Energy Generation 23 Energy Capacity 325 Matter Stores 300 Matter Capacity 300 Sight Range 16 Terrain Scan Density 10 Additional Mass Support 6 Evasion (%) 64 Recoil Reduction 3 Offensive Hacking 10 Defensive Hacking 10 Item Schematics ----------------- None Robot Schematics ------------------ None Fabricated ------------ Nothing Alien Tech Used ----------------- None Achievements -------------- None Challenges ------------ None Game ------ Seed CobblerGatlingTendrils Manual? 0 Play Time 00:57:00 Cumulative 84.4 hours Start 2024.07.04 @ 16:39:08 End 2024.07.04 @ 18:20:43 Sessions 1 Manual Loads 0 Difficulty Rogue Special Mode None Game No. 121 Rogue 121 Adventurer 0 Explorer 0 Win Type - Total 0 Types 0/0/0/0/0/0/0/0/0 Lore% 39 Gallery% 52 Achievement% 34 Wizard Run 0 Options --------- Layout 0 ASCII 0 Keyboard 0 Movement Mouse Keybinds 0 Fullscreen 1 Font 24/Smallcaps Map View 76x50 Zoom Use 0% Tactical HUD 1 Map Filters NONE Filters NONE Steam 1 RUN: b19bd0ab-2ddb-469a-8530-e7cbfe90ba1f